fUSD/lending_fUSD_20250623
["ID","MTS","AMOUNT","RATE_DAILY","PERIOD"]
[367242703,1750713045951,-490.0,0.00021917,2]
[367242705,1750713045961,-490.0,0.00021917,2]
[367242707,1750713045971,-539.77,0.00021917,2]
[367242709,1750713045980,-514.28,0.00021917,2]
[367242711,1750713045989,-490.0,0.00021917,2]
[367242713,1750713045999,-490.0,0.00021917,2]
[367242715,1750713046008,-547.94,0.00021917,2]
[367242717,1750713046017,-490.0,0.00021917,2]
[367242719,1750713046027,-565.46,0.00021917,2]
[367242721,1750713046036,-490.0,0.00021917,2]
[367242723,1750713046045,-524.0,0.00021917,2]
[367242725,1750713046055,-490.0,0.00021917,2]
[367242727,1750713046064,-476.874568,0.00021917,2]
[367242729,1750713046073,-490.0,0.00021917,2]
[367242731,1750713046083,-490.0,0.00021917,2]
[367242733,1750713046092,-490.0,0.00021917,2]
[367242735,1750713046101,-492.14391151,0.00021917,2]
[367242736,1750713046110,-490.0,0.00021917,2]
[367242737,1750713046119,-490.0,0.00021917,2]
[367242738,1750713046129,-490.0,0.00021917,2]
[367242739,1750713046139,-490.0,0.00021917,2]
[367242740,1750713046148,-490.0,0.00021917,2]
[367242742,1750713046158,-490.0,0.00021917,2]
[367242744,1750713046168,-907.09,0.00021917,2]
[367242746,1750713046177,-560.83,0.00021917,2]
[367242748,1750713046187,-658.67,0.00021917,2]
[367242750,1750713046197,-490.0,0.00021917,2]
[367242752,1750713046206,-490.0,0.00021917,2]
[367242754,1750713046215,-490.0,0.00021917,2]
[367242756,1750713046225,-490.0,0.00021917,2]
[367242758,1750713046234,-750.38,0.00021917,2]
[367242760,1750713046243,-490.0,0.00021917,2]
[367242763,1750713046253,-435.92573366,0.00021917,2]
[367242765,1750713046263,-490.0,0.00021917,2]
[367242767,1750713046272,-490.0,0.00021917,2]
[367242769,1750713046282,-490.0,0.00021917,2]
[367242772,1750713046292,-490.0,0.00021917,2]
[367242774,1750713046302,-797.21,0.00021917,2]
[367242776,1750713046311,-777.59,0.00021917,2]
[367242778,1750713046320,-490.0,0.00021917,2]
[367242780,1750713046330,-490.0,0.00021917,2]
[367242782,1750713046342,-490.0,0.00021917,2]
[367242784,1750713046351,-490.0,0.00021917,2]
[367242786,1750713046361,-423.08329147,0.00021917,2]
[367242788,1750713046370,-490.0,0.00021917,2]
[367242790,1750713046381,-490.0,0.00021917,2]
[367242792,1750713046390,-490.0,0.00021917,2]
[367242794,1750713046399,-490.0,0.00021917,2]
[367242796,1750713046409,-713.85,0.00021917,2]
[367242798,1750713046418,-490.0,0.00021917,2]
[367242800,1750713046429,-490.0,0.00021917,2]
[367242802,1750713046439,-490.0,0.00021917,2]
[367242804,1750713046449,-797.64,0.00021917,2]
[367242806,1750713046460,-490.0,0.00021917,2]
[367242808,1750713046470,-490.0,0.00021917,2]
[367242810,1750713046479,-490.0,0.00021917,2]
[367242812,1750713046488,-490.0,0.00021917,2]
[367242814,1750713046498,-238.47007096,0.00021917,2]
[367242816,1750713046508,-490.0,0.00021917,2]
[367242818,1750713046517,-378.02468836,0.00021917,2]
[367242820,1750713046527,-490.0,0.00021917,2]
[367242822,1750713046538,-490.0,0.00021917,2]
[367242824,1750713046548,-696.71,0.00021917,2]
[367242826,1750713046557,-490.0,0.00021917,2]
[367242828,1750713046568,-490.0,0.00021917,2]
[367242830,1750713046578,-490.0,0.00021917,2]
[367242833,1750713046588,-212.13646848,0.00021917,2]
[367242835,1750713046597,-490.0,0.00021917,2]
[367242837,1750713046607,-490.0,0.00021917,2]
[367242838,1750713046616,-490.0,0.00021917,2]
[367242841,1750713046626,-490.0,0.00021917,2]
[367242842,1750713046635,-490.0,0.00021917,2]
[367242845,1750713046645,-557.13,0.00021917,2]
[367242847,1750713046654,-490.0,0.00021917,2]
[367242848,1750713046663,-490.0,0.00021917,2]
[367242850,1750713046673,-490.0,0.00021917,2]
[367242853,1750713046682,-490.0,0.00021917,2]
[367242855,1750713046692,-490.0,0.00021917,2]
[367242857,1750713046702,-490.0,0.00021917,2]
[367242859,1750713046711,-490.0,0.00021917,2]
[367242861,1750713046719,-490.0,0.00021917,2]
[367242862,1750713046729,-490.0,0.00021917,2]
[367242864,1750713046738,-490.0,0.00021917,2]
[367242866,1750713046747,-490.0,0.00021917,2]
[367242868,1750713046756,-539.51,0.00021917,2]
[367242870,1750713046765,-490.0,0.00021917,2]
[367242872,1750713046774,-804.33,0.00021917,2]
[367242874,1750713046783,-490.0,0.00021917,2]
[367242877,1750713046792,-490.0,0.00021917,2]
[367242879,1750713046802,-490.0,0.00021917,2]
[367242881,1750713046812,-843.69,0.00021917,2]
[367242883,1750713046821,-490.0,0.00021917,2]
[367242885,1750713046832,-490.0,0.00021917,2]
[367242887,1750713046842,-490.0,0.00021917,2]
[367242889,1750713046852,-490.0,0.00021917,2]
[367242915,1750713047057,-490.0,0.00021917,2]
[367242918,1750713047098,-490.0,0.00021917,2]
[367242920,1750713047107,-490.0,0.00021917,2]
[367242922,1750713047117,-494.47379141,0.00021917,2]
[367242925,1750713047127,-490.0,0.00021917,2]
[367242927,1750713047136,-490.0,0.00021917,2]
[367242929,1750713047146,-490.0,0.00021917,2]
[367242931,1750713047155,-490.0,0.00021917,2]
[367242933,1750713047164,-490.0,0.00021917,2]
[367242935,1750713047173,-490.0,0.00021917,2]
[367242936,1750713047183,-490.0,0.00021917,2]
[367242939,1750713047192,-490.0,0.00021917,2]
[367242941,1750713047201,-490.0,0.00021917,2]
[367242943,1750713047211,-537.97,0.00021917,2]
[367242945,1750713047220,-490.0,0.00021917,2]
[367242947,1750713047229,-490.0,0.00021917,2]
[367242949,1750713047238,-490.0,0.00021917,2]
[367242951,1750713047248,-498.72302627,0.00021917,2]
[367242953,1750713047257,-490.0,0.00021917,2]
[367242955,1750713047266,-490.0,0.00021917,2]
[367242957,1750713047275,-662.95,0.00021917,2]
[367242959,1750713047285,-490.0,0.00021917,2]
[367242961,1750713047294,-495.26,0.00021917,2]
[367242963,1750713047303,-490.38397467,0.00021917,2]
[367242965,1750713047312,-490.0,0.00021917,2]
[367242967,1750713047322,-519.27,0.00021917,2]
[367242968,1750713047332,-490.0,0.00021917,2]
[367242971,1750713047341,-490.0,0.00021917,2]
[367242973,1750713047350,-490.0,0.00021917,2]
[367242975,1750713047359,-490.0,0.00021917,2]
[367242977,1750713047369,-490.0,0.00021917,2]
[367242979,1750713047378,-490.0,0.00021917,2]
[367242981,1750713047387,-615.36,0.00021917,2]
[367242983,1750713047397,-490.0,0.00021917,2]
[367242985,1750713047406,-490.0,0.00021917,2]
[367242987,1750713047415,-490.0,0.00021917,2]
[367242989,1750713047424,-490.0,0.00021917,2]
[367242991,1750713047433,-490.0,0.00021917,2]
[367242993,1750713047443,-490.0,0.00021917,2]
[367242995,1750713047453,-626.03,0.00021917,2]
[367242997,1750713047466,-490.0,0.00021917,2]
[367242999,1750713047476,-490.0,0.00021917,2]
[367243001,1750713047485,-490.0,0.00021917,2]
[367243003,1750713047494,-490.0,0.00021917,2]
[367243005,1750713047504,-490.0,0.00021917,2]
[367243007,1750713047514,-490.0,0.00021917,2]
[367243009,1750713047523,-531.94857183,0.00021917,2]
[367243011,1750713047532,-490.0,0.00021917,2]
[367243013,1750713047542,-490.0,0.00021917,2]
[367243015,1750713047552,-490.0,0.00021917,2]
[367243017,1750713047561,-490.0,0.00021917,2]
[367243019,1750713047570,-490.0,0.00021917,2]
[367243021,1750713047580,-946.3,0.00021917,2]
[367243023,1750713047589,-490.0,0.00021917,2]
[367243025,1750713047598,-490.0,0.00021917,2]
[367243028,1750713047608,-490.0,0.00021917,2]
[367243030,1750713047617,-490.0,0.00021917,2]
[367243032,1750713047627,-997.26,0.00021917,2]
[367243034,1750713047636,-490.0,0.00021917,2]
[367243036,1750713047645,-490.0,0.00021917,2]
[367243038,1750713047654,-490.0,0.00021917,2]
[367243040,1750713047663,-163.23500014,0.00021917,2]
[367243042,1750713047673,-508.13,0.00021917,2]
[367243044,1750713047682,-502.81455026,0.00021917,2]
[367243046,1750713047690,-490.0,0.00021917,2]
[367243048,1750713047701,-490.0,0.00021917,2]
[367243050,1750713047710,-616.53537755,0.00021917,2]
[367243052,1750713047719,-670.18,0.00021917,2]
[367243054,1750713047729,-490.0,0.00021917,2]
[367243056,1750713047738,-490.0,0.00021917,2]
[367243058,1750713047747,-490.0,0.00021917,2]
[367243060,1750713047756,-490.0,0.00021917,2]
[367243062,1750713047765,-532.33,0.00021917,2]
[367243064,1750713047774,-490.0,0.00021917,2]
[367243066,1750713047783,-490.0,0.00021917,2]
[367243068,1750713047792,-283.53670919,0.00021917,2]
[367243181,1750713048901,-540.84329081,0.00021917,2]
[367243183,1750713048911,-490.0,0.00021917,2]
[367243185,1750713048920,-490.0,0.00021917,2]
[367243187,1750713048930,-490.0,0.00021917,2]
[367243189,1750713048940,-724.49,0.00021917,2]
[367243191,1750713048949,-490.0,0.00021917,2]
[367243193,1750713048959,-490.0,0.00021917,2]
[367243195,1750713048969,-560.07923138,0.00021917,2]
[367243198,1750713048981,-157.52076862,0.00021917,2]
[367243199,1750713048991,-490.0,0.00021917,2]
[367243201,1750713049000,-490.0,0.00021917,2]
[367243204,1750713049009,-490.0,0.00021917,2]
[367243206,1750713049018,-490.0,0.00021917,2]
[367243208,1750713049025,-490.0,0.00021917,2]
[367243209,1750713049033,-490.0,0.00021917,2]
[367243211,1750713049042,-490.0,0.00021917,2]
[367243213,1750713049051,-979.84,0.00021917,2]
[367243215,1750713049062,-490.0,0.00021917,2]
[367243217,1750713049071,-490.0,0.00021917,2]
[367243219,1750713049082,-695.57,0.00021917,2]
[367243221,1750713049091,-490.0,0.00021917,2]
[367243223,1750713049101,-490.0,0.00021917,2]
[367243225,1750713049111,-490.0,0.00021917,2]
[367243227,1750713049120,-490.0,0.00021917,2]
[367243229,1750713049130,-490.0,0.00021917,2]
[367243231,1750713049140,-490.0,0.00021917,2]
[367243233,1750713049150,-490.0,0.00021917,2]
[367243235,1750713049159,-490.0,0.00021917,2]
[367243236,1750713049168,-235.06923138,0.00021917,2]
[367245406,1750713071614,203.0,0.00018594,2]
[367247223,1750713398385,250.0,0.00015,2]
[367247229,1750713455689,150.0,0.00019112,2]
[367247239,1750713602786,164.39,0.00026133,120]
[367247250,1750713917023,152.64,0.00013699,2]
[367247253,1750714028114,2594.1704224,0.00016435,2]
[367247254,1750714028141,13911.27765988,0.00016435,2]
[367247304,1750714211926,201.0,0.00018358,2]
[367247309,1750714231628,-173.03,0.00019178,2]
[367247310,1750714231638,-443.28903933,0.000199,2]
[367247311,1750714231648,-1421.47895768,0.0002,5]
[367247312,1750714231657,-201.0,0.00020169,4]
[367247313,1750714231668,-152.64,0.00020187,2]
[367247314,1750714231678,-150.0,0.00020195,2]
[367247315,1750714231687,-150.0,0.00020195,2]
[367247316,1750714231698,-260.99475312,0.00020195,2]
[367247317,1750714231707,-1000.0,0.00020631,2]
[367247318,1750714231717,-1542.66,0.00020819,2]
[367247319,1750714231727,-666.0,0.0002088,2]
[367247320,1750714231737,-164.39,0.00020906,2]
[367247321,1750714231747,-250.0,0.00020965,2]
[367247322,1750714231756,-1107.0,0.00020981,2]
[367247323,1750714231765,-1711.38,0.00020982,2]
[367247324,1750714231775,-201.6,0.00020986,2]
[367247325,1750714231784,-200.0,0.00021002,2]
[367247326,1750714231793,-300.0,0.00021122,2]
[367247327,1750714231804,-500.0,0.00021123,2]
[367247328,1750714231817,-631.78,0.00021131,2]
[367247330,1750714231828,-1089.0,0.000215,2]
[367247332,1750714231838,-163.63,0.00021507,2]
[367247334,1750714231850,-455.7,0.00021507,2]
[367247337,1750714231859,-207.4,0.00021528,2]
[367247339,1750714231869,-170.95,0.00021587,2]
[367247341,1750714231880,-300.0,0.000216,7]
[367247343,1750714231890,-2567.55,0.00021672,2]
[367247345,1750714231899,-700.0,0.000217,7]
[367247347,1750714231909,-1540.16435,0.000217,2]
[367247349,1750714231919,-6828.57,0.00021757,2]
[367247351,1750714231929,-1000.0,0.000218,7]
[367247353,1750714231939,-151.0,0.00021804,2]
[367247355,1750714231950,-2500.0,0.00021817,2]
[367247357,1750714231959,-5000.0,0.00021817,2]
[367247359,1750714231969,-326.18858216,0.00021817,2]
[367247361,1750714231981,-5061.7819153,0.00021817,2]
[367247363,1750714231990,-270.38833308,0.00021817,2]
[367247366,1750714232000,-155.28853621,0.00021873,2]
[367247368,1750714232010,-5135.0,0.00021891,2]
[367247370,1750714232020,-151.7846607,0.00021895,2]
[367247372,1750714232029,-1400.0,0.000219,7]
[367247374,1750714232038,-221.54631933,0.000219,2]
[367247376,1750714232047,-187.38,0.00021907,2]
[367247378,1750714232056,-6785.9295562,0.00021915,2]
[367247380,1750714232066,-500.0,0.00021916,2]
[367247382,1750714232076,-500.0,0.00021916,2]
[367247384,1750714232086,-500.0,0.00021916,2]
[367247386,1750714232095,-250.56008718,0.00021916,2]
[367247388,1750714232105,-500.0,0.00021916,2]
[367247390,1750714232115,-500.0,0.00021916,2]
[367247392,1750714232124,-500.0,0.00021916,2]
[367247394,1750714232133,-490.0,0.00021917,2]
[367247396,1750714232142,-490.0,0.00021917,2]
[367247398,1750714232152,-193.64027387,0.00021917,2]
[367247400,1750714232161,-490.0,0.00021917,2]
[367247402,1750714232171,-490.0,0.00021917,2]
[367247404,1750714232181,-490.0,0.00021917,2]
[367247406,1750714232190,-490.0,0.00021917,2]
[367247408,1750714232199,-490.0,0.00021917,2]
[367247410,1750714232208,-490.0,0.00021917,2]
[367247412,1750714232218,-490.0,0.00021917,2]
[367247414,1750714232227,-490.0,0.00021917,2]
[367247416,1750714232236,-490.0,0.00021917,2]
[367247418,1750714232246,-490.0,0.00021917,2]
[367247420,1750714232256,-490.0,0.00021917,2]
[367247422,1750714232265,-490.0,0.00021917,2]
[367247424,1750714232275,-490.0,0.00021917,2]
[367247426,1750714232284,-490.0,0.00021917,2]
[367247428,1750714232294,-250.0,0.00021917,2]
[367247430,1750714232304,-490.0,0.00021917,2]
[367247432,1750714232314,-490.0,0.00021917,2]
[367247434,1750714232323,-490.0,0.00021917,2]
[367247436,1750714232333,-490.0,0.00021917,2]
[367247438,1750714232343,-490.0,0.00021917,2]
[367247440,1750714232353,-490.0,0.00021917,2]
[367247442,1750714232362,-490.0,0.00021917,2]
[367247444,1750714232371,-490.0,0.00021917,2]
[367247446,1750714232381,-490.0,0.00021917,2]
[367247448,1750714232390,-490.0,0.00021917,2]
[367247450,1750714232399,-490.0,0.00021917,2]
[367247452,1750714232408,-490.0,0.00021917,2]
[367247454,1750714232418,-490.0,0.00021917,2]
[367247456,1750714232427,-500.0,0.00021917,2]
[367247458,1750714232436,-490.0,0.00021917,2]
[367247460,1750714232446,-490.0,0.00021917,2]
[367247462,1750714232455,-490.0,0.00021917,2]
[367247464,1750714232466,-490.0,0.00021917,2]
[367247466,1750714232475,-490.0,0.00021917,2]
[367247468,1750714232485,-490.0,0.00021917,2]
[367247470,1750714232494,-490.0,0.00021917,2]
[367247472,1750714232504,-490.0,0.00021917,2]
[367247474,1750714232515,-490.0,0.00021917,2]
[367247476,1750714232525,-490.0,0.00021917,2]
[367247478,1750714232535,-548.2089135,0.00021917,2]
[367247480,1750714232546,-490.0,0.00021917,2]
[367247482,1750714232557,-428.99730721,0.00021917,2]
[367247486,1750714232589,-61.00269279,0.00021917,2]
[367247488,1750714232599,-517.28,0.00021917,2]
[367247490,1750714232608,-462.31730721,0.00021917,2]
[367247495,1750714232654,-27.68269279,0.00021917,2]
[367247497,1750714232663,-535.69,0.00021917,2]
[367247499,1750714232672,-490.0,0.00021917,2]
[367247501,1750714232682,-490.0,0.00021917,2]
[367247503,1750714232691,-490.0,0.00021917,2]
[367247506,1750714232702,-490.0,0.00021917,2]
[367247508,1750714232712,-490.0,0.00021917,2]
[367247510,1750714232721,-490.0,0.00021917,2]
[367247512,1750714232731,-273.23941994,0.00021917,2]
[367247578,1750714237754,-445.88058006,0.00021917,2]
[367247579,1750714237763,-490.0,0.00021917,2]
[367247580,1750714237773,-490.0,0.00021917,2]
[367247581,1750714237783,-490.0,0.00021917,2]
[367247582,1750714237794,-490.0,0.00021917,2]
[367247583,1750714237806,-867.91,0.00021917,2]
[367247584,1750714237817,-490.0,0.00021917,2]
[367247585,1750714237826,-490.0,0.00021917,2]
[367247586,1750714237836,-547.12,0.00021917,2]
[367247587,1750714237846,-490.0,0.00021917,2]
[367247589,1750714237856,-490.0,0.00021917,2]
[367247591,1750714237865,-490.0,0.00021917,2]
[367247592,1750714237875,-242.76854254,0.00021917,2]
[367247594,1750714237885,-490.0,0.00021917,2]
[367247596,1750714237896,-490.0,0.00021917,2]
[367247597,1750714237906,-490.0,0.00021917,2]
[367247598,1750714237917,-490.0,0.00021917,2]
[367247599,1750714237927,-717.42,0.00021917,2]
[367247600,1750714237939,-490.0,0.00021917,2]
[367247601,1750714237950,-199.51532423,0.00021917,2]
[367247602,1750714237969,-290.48467577,0.00021917,2]
[367247604,1750714237979,-490.0,0.00021917,2]
[367247606,1750714237987,-490.0,0.00021917,2]
[367247608,1750714237997,-325.85590902,0.00021917,2]
[367247610,1750714238006,-490.0,0.00021917,2]
[367247612,1750714238015,-490.0,0.00021917,2]
[367247614,1750714238025,-490.0,0.00021917,2]
[367247616,1750714238034,-490.0,0.00021917,2]
[367247618,1750714238043,-490.0,0.00021917,2]
[367247620,1750714238052,-160.78368064,0.00021917,2]
[367247622,1750714238063,-311.184893,0.00021917,2]
[367247625,1750714238074,-18.03142636,0.00021917,2]
[367247627,1750714238085,-490.0,0.00021917,2]
[367247628,1750714238094,-490.0,0.00021917,2]
[367247631,1750714238104,-490.0,0.00021917,2]
[367247633,1750714238113,-500.0,0.00021917,2]
[367247634,1750714238122,-490.0,0.00021917,2]
[367247636,1750714238131,-506.28,0.00021917,2]
[367247638,1750714238141,-490.0,0.00021917,2]
[367247640,1750714238150,-490.0,0.00021917,2]
[367247643,1750714238160,-790.03,0.00021917,2]
[367247644,1750714238170,-490.0,0.00021917,2]
[367247646,1750714238179,-490.0,0.00021917,2]
[367247648,1750714238189,-490.0,0.00021917,2]
[367247650,1750714238198,-490.0,0.00021917,2]
[367247653,1750714238207,-490.0,0.00021917,2]
[367247654,1750714238216,-490.0,0.00021917,2]
[367247656,1750714238225,-490.0,0.00021917,2]
[367247659,1750714238236,-490.0,0.00021917,2]
[367247661,1750714238245,-490.0,0.00021917,2]
[367247663,1750714238254,-490.0,0.00021917,2]
[367247665,1750714238263,-490.0,0.00021917,2]
[367247666,1750714238272,-490.0,0.00021917,2]
[367247668,1750714238281,-589.72,0.00021917,2]
[367247670,1750714238290,-490.0,0.00021917,2]
[367247672,1750714238299,-84.70360662,0.00021917,2]
[367247675,1750714238312,-405.29639338,0.00021917,2]
[367247677,1750714238321,-116.55360662,0.00021917,2]
[367247682,1750714238362,-373.44639338,0.00021917,2]
[367247684,1750714238372,-490.0,0.00021917,2]
[367247686,1750714238381,-490.0,0.00021917,2]
[367247688,1750714238391,-490.0,0.00021917,2]
[367247690,1750714238401,-702.66,0.00021917,2]
[367247692,1750714238410,-490.0,0.00021917,2]
[367247694,1750714238420,-490.0,0.00021917,2]
[367247696,1750714238429,-490.0,0.00021917,2]
[367247698,1750714238439,-490.0,0.00021917,2]
[367247700,1750714238448,-490.0,0.00021917,2]
[367247702,1750714238457,-490.0,0.00021917,2]
[367247704,1750714238467,-490.0,0.00021917,2]
[367247706,1750714238476,-490.0,0.00021917,2]
[367247708,1750714238486,-490.0,0.00021917,2]
[367247710,1750714238495,-490.0,0.00021917,2]
[367247712,1750714238504,-490.0,0.00021917,2]
[367247714,1750714238514,-490.0,0.00021917,2]
[367247716,1750714238523,-490.0,0.00021917,2]
[367247718,1750714238532,-490.0,0.00021917,2]
[367247720,1750714238541,-248.84930622,0.00021917,2]
[367247722,1750714238554,-241.15069378,0.00021917,2]
[367247724,1750714238564,-510.15,0.00021917,2]
[367247726,1750714238574,-490.0,0.00021917,2]
[367247728,1750714238585,-490.0,0.00021917,2]
[367247730,1750714238595,-532.32,0.00021917,2]
[367247732,1750714238604,-490.0,0.00021917,2]
[367247734,1750714238613,-490.0,0.00021917,2]
[367247736,1750714238623,-490.0,0.00021917,2]
[367247738,1750714238632,-490.0,0.00021917,2]
[367247741,1750714238642,-490.0,0.00021917,2]
[367247742,1750714238652,-490.0,0.00021917,2]
[367247744,1750714238661,-490.0,0.00021917,2]
[367247746,1750714238671,-490.0,0.00021917,2]
[367247748,1750714238680,-490.0,0.00021917,2]
[367247750,1750714238689,-490.0,0.00021917,2]
[367247752,1750714238699,-490.0,0.00021917,2]
[367247754,1750714238708,-490.0,0.00021917,2]
[367247756,1750714238718,-490.0,0.00021917,2]
[367247758,1750714238728,-490.0,0.00021917,2]
[367247760,1750714238738,-490.0,0.00021917,2]
[367247762,1750714238748,-490.0,0.00021917,2]
[367247764,1750714238758,-303.37930622,0.00021917,2]
[367247866,1750714239677,-186.62069378,0.00021917,2]
[367247868,1750714239686,-490.18019364,0.00021917,2]
[367247870,1750714239695,-501.12880508,0.00021917,2]
[367247872,1750714239704,-490.0,0.00021917,2]
[367247874,1750714239714,-490.0,0.00021917,2]
[367247876,1750714239723,-490.0,0.00021917,2]
[367247878,1750714239733,-490.0,0.00021917,2]
[367247880,1750714239742,-490.0,0.00021917,2]
[367247882,1750714239751,-490.0,0.00021917,2]
[367247884,1750714239760,-490.0,0.00021917,2]
[367247886,1750714239769,-490.0,0.00021917,2]
[367247888,1750714239779,-420.0,0.00021917,2]
[367247890,1750714239788,-490.0,0.00021917,2]
[367247892,1750714239797,-490.0,0.00021917,2]
[367247894,1750714239811,-490.0,0.00021917,2]
[367247896,1750714239820,-490.0,0.00021917,2]
[367247898,1750714239830,-490.0,0.00021917,2]
[367247900,1750714239839,-490.0,0.00021917,2]
[367247902,1750714239850,-619.00321017,0.00021917,2]
[367247904,1750714239859,-490.0,0.00021917,2]
[367247906,1750714239867,-490.0,0.00021917,2]
[367247908,1750714239877,-499.29570187,0.00021917,2]
[367247910,1750714239888,-490.0,0.00021917,2]
[367247912,1750714239898,-490.0,0.00021917,2]
[367247914,1750714239907,-490.0,0.00021917,2]
[367247916,1750714239916,-490.0,0.00021917,2]
[367247918,1750714239926,-643.08,0.00021917,2]
[367247920,1750714239935,-490.0,0.00021917,2]
[367247922,1750714239944,-490.0,0.00021917,2]
[367247924,1750714239954,-490.0,0.00021917,2]
[367247926,1750714239964,-490.0,0.00021917,2]
[367247928,1750714239973,-490.0,0.00021917,2]
[367247929,1750714239982,-325.06996461,0.00021917,2]
[367247930,1750714239991,-490.0,0.00021917,2]
[367247931,1750714240007,-490.0,0.00021917,2]
[367247932,1750714240016,-490.0,0.00021917,2]
[367247933,1750714240025,-490.0,0.00021917,2]
[367247934,1750714240034,-490.0,0.00021917,2]
[367247935,1750714240043,-490.0,0.00021917,2]
[367247936,1750714240052,-490.0,0.00021917,2]
[367247937,1750714240060,-853.61,0.00021917,2]
[367247938,1750714240069,-568.32,0.00021917,2]
[367247939,1750714240078,-490.0,0.00021917,2]
[367247940,1750714240087,-222.25288798,0.00021917,2]
[367247941,1750714240096,-490.0,0.00021917,2]
[367247942,1750714240105,-490.0,0.00021917,2]
[367247943,1750714240114,-490.0,0.00021917,2]
[367247945,1750714240124,-490.0,0.00021917,2]
[367247947,1750714240133,-490.0,0.00021917,2]
[367247949,1750714240142,-490.0,0.00021917,2]
[367247951,1750714240151,-490.0,0.00021917,2]
[367247953,1750714240161,-490.0,0.00021917,2]
[367247955,1750714240170,-490.0,0.00021917,2]
[367247957,1750714240179,-297.78112939,0.00021917,2]
[367247959,1750714240188,-42.65741348,0.00021917,2]
[367247961,1750714240203,-447.34258652,0.00021917,2]
[367247963,1750714240212,-352.65741348,0.00021917,2]
[367248046,1750714242704,-364.5786655,0.00021915,2]
[367248047,1750714244244,-666.03639611,0.00021915,2]
[367248048,1750714244256,-521.85,0.00021915,2]
[367248049,1750714244269,-688.83026729,0.00021915,2]
[367248050,1750714244279,-137.34258652,0.00021917,2]
[367248051,1750714244288,-499.94960603,0.00021917,2]
[367248052,1750714244297,-490.0,0.00021917,2]
[367248053,1750714244307,-490.0,0.00021917,2]
[367248054,1750714244316,-175.91116199,0.00021917,2]
[367248078,1750714245876,-314.08883801,0.00021917,2]
[367248079,1750714245887,-511.92474836,0.00021917,2]
[367248080,1750714245897,-490.0,0.00021917,2]
[367248081,1750714245907,-490.0,0.00021917,2]
[367248082,1750714245916,-162.94080702,0.00021917,2]
[367248083,1750714245926,-490.0,0.00021917,2]
[367248084,1750714245936,-490.0,0.00021917,2]
[367248085,1750714245945,-110.86700861,0.00021917,2]
[367248086,1750714245994,-379.13299139,0.00021917,2]
[367248087,1750714246003,-490.0,0.00021917,2]
[367248088,1750714246012,-466.86887206,0.00021917,2]
[367248089,1750714246022,-490.0,0.00021917,2]
[367248090,1750714246033,-490.0,0.00021917,2]
[367248091,1750714246043,-528.53468939,0.00021917,2]
[367248102,1750714271837,203.0,0.00018358,2]
[367248108,1750714693985,195.48,0.00025832,120]
[367248112,1750714941312,152.64,0.00013699,2]
[367248120,1750715234919,1000.0,0.00018692,2]